fUST/lending_fUST_20240910
["ID","MTS","AMOUNT","RATE_DAILY","PERIOD"]
[337687416,1725961545762,-182.340411,0.00019936,2]
[337687417,1725961545786,-182.340411,0.00019936,2]
[337687418,1725961545810,-182.340411,0.00019936,2]
[337687419,1725961545834,-182.340411,0.00019936,2]
[337687420,1725961545856,-151.0,0.00019936,2]
[337687421,1725961545882,-151.0,0.00019936,2]
[337687422,1725961545907,-151.0,0.00019936,2]
[337687423,1725961545932,-151.0,0.00019936,2]
[337687424,1725961545954,-151.0,0.00019936,2]
[337687425,1725961545978,-151.0,0.00019936,2]
[337687426,1725961546000,-151.0,0.00019936,2]
[337687427,1725961546023,-151.0,0.00019936,2]
[337687428,1725961546048,-151.0,0.00019936,2]
[337687429,1725961546073,-151.0,0.00019936,2]
[337687430,1725961546099,-151.0,0.00019936,2]
[337687431,1725961546124,-267.114651,0.00019936,2]
[337687432,1725961546148,-267.114651,0.00019936,2]
[337687433,1725961546171,-267.114651,0.00019936,2]
[337687434,1725961546194,-267.114651,0.00019936,2]
[337687435,1725961546215,-151.0,0.00019936,2]
[337687436,1725961546237,-151.0,0.00019936,2]
[337687437,1725961546261,-151.0,0.00019936,2]
[337687438,1725961546284,-162.044293,0.00019936,2]
[337687439,1725961546307,-316.098645,0.00019936,2]
[337687440,1725961546331,-316.098645,0.00019936,2]
[337687441,1725961546353,-316.098645,0.00019936,2]
[337687442,1725961546377,-316.098645,0.00019936,2]
[337687443,1725961546400,-151.0,0.00019936,2]
[337687444,1725961546425,-199.503838,0.00019936,2]
[337687445,1725961546453,-199.503838,0.00019936,2]
[337687446,1725961546492,-199.503838,0.00019936,2]
[337687447,1725961546533,-199.503838,0.00019936,2]
[337687448,1725961546573,-154.813428,0.00019937,2]
[337687449,1725961546609,-151.0,0.00019937,2]
[337687450,1725961546642,-155.798567,0.00019937,2]
[337687451,1725961546687,-151.0,0.00019937,2]
[337687452,1725961546728,-325.324102,0.00019937,2]
[337687453,1725961546759,-151.0,0.00019937,2]
[337687454,1725961546793,-500.0,0.00019937,2]
[337687455,1725961546829,-1110.55,0.00019937,2]
[337687456,1725961546858,-325.324102,0.00019937,2]
[337687457,1725961546890,-510.14024662,0.00019937,2]
[337687458,1725961546925,-500.0,0.00019937,2]
[337687459,1725961546957,-520.95,0.00019937,2]
[337687460,1725961546990,-520.95,0.00019937,2]
[337687461,1725961547023,-520.95,0.00019937,2]
[337687462,1725961547055,-151.0,0.00019937,2]
[337687463,1725961547088,-500.0,0.00019937,2]
[337687464,1725961547121,-151.0,0.00019937,2]
[337687465,1725961547154,-151.0,0.00019937,2]
[337687466,1725961547186,-180.382684,0.00019937,2]
[337687467,1725961547221,-180.382684,0.00019937,2]
[337687468,1725961547257,-500.0,0.00019937,2]
[337687469,1725961547292,-500.0,0.00019937,2]
[337687470,1725961547324,-151.0,0.00019937,2]
[337687471,1725961547356,-151.0,0.00019937,2]
[337687472,1725961547390,-151.0,0.00019937,2]
[337687473,1725961547423,-151.0,0.00019937,2]
[337687474,1725961547459,-255.360498,0.00019937,2]
[337687475,1725961547494,-500.0,0.00019937,2]
[337687476,1725961547528,-288.916908,0.00019937,2]
[337687477,1725961547562,-500.0,0.00019937,2]
[337687478,1725961547599,-500.0,0.00019937,2]
[337687479,1725961547633,-1578.3,0.00019937,2]
[337687480,1725961547665,-500.0,0.00019937,2]
[337687481,1725961547698,-1275.59,0.00019937,2]
[337687482,1725961547730,-182.340411,0.00019937,2]
[337687483,1725961547762,-500.0,0.00019937,2]
[337687484,1725961547795,-182.340411,0.00019937,2]
[337687485,1725961547826,-500.0,0.00019937,2]
[337687486,1725961547859,-1473.16,0.00019937,2]
[337687487,1725961547893,-151.0,0.00019937,2]
[337687489,1725961547927,-151.0,0.00019937,2]
[337687490,1725961547960,-183.84844397,0.00019937,2]
[337687491,1725961547987,-501.38940008,0.00019937,2]
[337687492,1725961548010,-759.58,0.00019937,2]
[337687493,1725961548033,-500.0,0.00019937,2]
[337687494,1725961548305,-514.29210023,0.00019937,2]
[337687495,1725961548353,-626.06,0.00019937,2]
[337687496,1725961548378,-5051.4,0.00019937,2]
[337687497,1725961548401,-500.0,0.00019937,2]
[337687498,1725961548427,-500.0,0.00019937,2]
[337687499,1725961548451,-557.29,0.00019937,2]
[337687500,1725961548475,-8867.21,0.00019937,2]
[337687501,1725961548500,-3260.62,0.00019937,2]
[337687502,1725961548523,-500.0,0.00019937,2]
[337687503,1725961548546,-1131.85,0.00019937,2]
[337687504,1725961548569,-151.0,0.00019937,2]
[337687505,1725961548592,-382.48163029,0.00019937,2]
[337687506,1725961548615,-1497.61,0.00019937,2]
[337687507,1725961548637,-1713.1,0.00019937,2]
[337687508,1725961548659,-500.0,0.00019937,2]
[337687509,1725961548682,-267.114651,0.00019937,2]
[337687510,1725961548706,-267.114651,0.00019937,2]
[337687511,1725961548729,-1618.92,0.00019937,2]
[337687512,1725961548752,-505.51201439,0.00019937,2]
[337687513,1725961548775,-500.0,0.00019937,2]
[337687514,1725961548800,-316.098645,0.00019937,2]
[337687515,1725961548826,-316.098645,0.00019937,2]
[337687516,1725961548849,-199.503838,0.00019937,2]
[337687517,1725961548873,-500.0,0.00019937,2]
[337687518,1725961548896,-500.0,0.00019937,2]
[337687519,1725961548919,-199.503838,0.00019937,2]
[337687520,1725961548942,-894.52,0.00019937,2]
[337687521,1725961548965,-500.0,0.00019937,2]
[337687522,1725961548988,-500.0,0.00019937,2]
[337687523,1725961549011,-1984.53,0.00019937,2]
[337687524,1725961549034,-503.07536454,0.00019937,2]
[337687525,1725961549057,-500.0,0.00019937,2]
[337687526,1725961549080,-500.0,0.00019937,2]
[337687527,1725961549102,-1769.66,0.00019937,2]
[337687528,1725961549125,-500.0,0.00019937,2]
[337687529,1725961549149,-500.0,0.00019937,2]
[337687530,1725961549173,-500.0,0.00019937,2]
[337687531,1725961549197,-567.95,0.00019937,2]
[337687532,1725961549221,-620.235165,0.00019937,2]
[337687533,1725961549244,-620.235165,0.00019937,2]
[337687534,1725961549267,-620.235165,0.00019937,2]
[337687535,1725961549291,-500.0,0.00019937,2]
[337687536,1725961549315,-620.235165,0.00019937,2]
[337687537,1725961549339,-620.235165,0.00019937,2]
[337687538,1725961549363,-620.235165,0.00019937,2]
[337687539,1725961549386,-600.08526517,0.00019937,2]
[337687540,1725961549412,-500.0,0.00019937,2]
[337687541,1725961549437,-500.0,0.00019937,2]
[337687542,1725961549461,-555.33,0.00019937,2]
[337687543,1725961549486,-1210.41,0.00019937,2]
[337687544,1725961549509,-500.0,0.00019937,2]
[337687545,1725961549531,-500.0,0.00019937,2]
[337687546,1725961549553,-1287.36,0.00019937,2]
[337687547,1725961549576,-1145.91,0.00019937,2]
[337687548,1725961549599,-507.54731882,0.00019937,2]
[337687549,1725961549622,-722.6,0.00019937,2]
[337687550,1725961549645,-1870.34,0.00019937,2]
[337687551,1725961549668,-2377.8,0.00019937,2]
[337687552,1725961549693,-48325.44,0.00019937,2]
[337687553,1725961549716,-151.0,0.00019937,2]
[337687554,1725961549740,-151.0,0.00019937,2]
[337687555,1725961549763,-2141.720629,0.00019937,2]
[337687556,1725961549785,-151.0,0.00019937,2]
[337687557,1725961549807,-2141.720629,0.00019937,2]
[337687558,1725961549829,-2141.720629,0.00019937,2]
[337687559,1725961549852,-2141.720629,0.00019937,2]
[337687560,1725961549874,-2141.720629,0.00019937,2]
[337687561,1725961549897,-2141.720629,0.00019937,2]
[337687562,1725961549921,-151.0,0.00019938,2]
[337687563,1725961549955,-240.688579,0.00019938,2]
[337687564,1725961549978,-1170.014622,0.00019938,2]
[337687565,1725961550001,-1170.014622,0.00019938,2]
[337687566,1725961550024,-1170.014622,0.00019938,2]
[337687567,1725961550047,-1170.014622,0.00019938,2]
[337687568,1725961550070,-1170.014622,0.00019938,2]
[337687569,1725961550094,-1170.014622,0.00019938,2]
[337687570,1725961550118,-151.0,0.00019938,2]
[337687571,1725961550141,-151.0,0.00019938,2]
[337687572,1725961550164,-151.0,0.00019938,2]
[337687573,1725961550192,-248.606899,0.00019938,2]
[337687574,1725961550216,-325.324102,0.00019938,2]
[337687575,1725961550240,-325.324102,0.00019938,2]
[337687576,1725961550263,-151.0,0.00019938,2]
[337687577,1725961550287,-151.0,0.00019938,2]
[337687578,1725961550310,-325.324102,0.00019938,2]
[337687579,1725961550333,-325.324102,0.00019938,2]
[337687580,1725961550357,-151.0,0.00019938,2]
[337687581,1725961550380,-520.95,0.00019938,2]
[337687582,1725961550403,-151.0,0.00019938,2]
[337687583,1725961550431,-520.95,0.00019938,2]
[337687584,1725961550454,-520.95,0.00019938,2]
[337687585,1725961550477,-520.95,0.00019938,2]
[337687586,1725961550501,-151.0,0.00019938,2]
[337687587,1725961550524,-151.0,0.00019938,2]
[337687588,1725961550547,-151.0,0.00019938,2]
[337687589,1725961550571,-151.0,0.00019938,2]
[337687590,1725961550594,-180.382684,0.00019938,2]
[337687591,1725961550617,-180.382684,0.00019938,2]
[337687592,1725961550640,-180.382684,0.00019938,2]
[337687593,1725961550662,-180.382684,0.00019938,2]
[337687594,1725961550687,-182.340411,0.00019938,2]
[337687595,1725961550711,-182.340411,0.00019938,2]
[337687596,1725961550925,-151.0,0.00019938,2]
[337687597,1725961550951,-270.661146,0.00019938,2]
[337687598,1725961550975,-156.78069654,0.00019938,2]
[337687599,1725961550997,-379.43334198,0.00019938,2]
[337687600,1725961551022,-500.0,0.00019938,2]
[337687601,1725961551045,-500.0,0.00019938,2]
[337687602,1725961551069,-500.0,0.00019938,2]
[337687603,1725961551091,-178.27436585,0.00019938,2]
[337687604,1725961551115,-500.0,0.00019938,2]
[337687605,1725961551139,-500.0,0.00019938,2]
[337687606,1725961551162,-500.0,0.00019938,2]
[337687607,1725961551185,-500.0,0.00019938,2]
[337687608,1725961551209,-464.64230753,0.00019938,2]
[337687609,1725961551233,-500.0,0.00019938,2]
[337687610,1725961551256,-500.0,0.00019938,2]
[337687611,1725961551281,-500.0,0.00019938,2]
[337687612,1725961551307,-300.0,0.00019938,2]
[337687613,1725961551332,-151.0,0.00019938,2]
[337687614,1725961551357,-267.114651,0.00019938,2]
[337687615,1725961551381,-267.114651,0.00019938,2]
[337687616,1725961551406,-316.098645,0.00019938,2]
[337687617,1725961551435,-316.098645,0.00019938,2]
[337687618,1725961551459,-199.503838,0.00019938,2]
[337687619,1725961551483,-199.503838,0.00019938,2]
[337687620,1725961551508,-500.0,0.00019938,2]
[337687621,1725961551534,-500.0,0.00019938,2]
[337687622,1725961551559,-500.0,0.00019938,2]
[337687623,1725961551583,-500.0,0.00019938,2]
[337687624,1725961551605,-620.235165,0.00019938,2]
[337687625,1725961551627,-620.235165,0.00019938,2]
[337687626,1725961551650,-151.0,0.00019938,2]
[337687627,1725961551673,-2141.720629,0.00019938,2]
[337687628,1725961551698,-2141.720629,0.00019938,2]
[337687629,1725961551723,-161.73062843,0.00019939,2]
[337687630,1725961551747,-302.33,0.00019939,2]
[337687631,1725961551770,-500.0,0.00019939,2]
[337687632,1725961551793,-500.0,0.00019939,2]
[337687633,1725961551816,-500.0,0.00019939,2]
[337687634,1725961551839,-500.0,0.00019939,2]
[337687635,1725961551861,-502.04827934,0.00019939,2]
[337687636,1725961551883,-783.34,0.00019939,2]
[337687637,1725961551905,-495.25015743,0.00019939,2]
[337687638,1725961551928,-288.3876029,0.00019939,2]
[337687639,1725961551950,-592.97242353,0.00019939,2]
[337687640,1725961551975,-500.0,0.00019939,2]
[337687641,1725961552000,-500.0,0.00019939,2]
[337687642,1725961552024,-501.93735845,0.00019939,2]
[337687643,1725961552045,-500.0,0.00019939,2]
[337687644,1725961552068,-783.73,0.00019939,2]
[337687645,1725961552090,-502.1377334,0.00019939,2]
[337687646,1725961552113,-151.0,0.00019939,2]
[337687647,1725961552135,-151.0,0.00019939,2]
[337687648,1725961552157,-151.0,0.00019939,2]
[337687649,1725961552180,-500.0,0.00019939,2]
[337687650,1725961552203,-503.03441153,0.00019939,2]
[337687651,1725961552225,-500.0,0.00019939,2]
[337687652,1725961552247,-500.0,0.00019939,2]
[337687653,1725961552271,-502.00476483,0.00019939,2]
[337687654,1725961552293,-500.0,0.00019939,2]
[337687655,1725961552316,-500.93638965,0.00019939,2]
[337687656,1725961552339,-151.0,0.00019939,2]
[337687657,1725961552360,-151.0,0.00019939,2]
[337687658,1725961552382,-151.0,0.00019939,2]
[337687659,1725961552404,-151.0,0.00019939,2]
[337687660,1725961552432,-1170.014622,0.00019939,2]
[337687661,1725961552456,-1170.014622,0.00019939,2]
[337687662,1725961552479,-1170.014622,0.00019939,2]
[337687663,1725961552504,-1170.014622,0.00019939,2]
[337687664,1725961552527,-1170.014622,0.00019939,2]
[337687665,1725961552550,-1170.014622,0.00019939,2]
[337687666,1725961552571,-502.15238451,0.00019939,2]
[337687667,1725961552593,-502.68001524,0.00019939,2]
[337687668,1725961552616,-500.0,0.00019939,2]
[337687669,1725961552639,-500.0,0.00019939,2]
[337687670,1725961552662,-151.0,0.00019939,2]
[337687671,1725961552684,-244.390363,0.00019939,2]
[337687672,1725961552707,-500.0,0.00019939,2]
[337687673,1725961552729,-500.0,0.00019939,2]
[337687674,1725961552750,-500.0,0.00019939,2]
[337687675,1725961552772,-502.25341862,0.00019939,2]
[337687676,1725961552795,-500.0,0.00019939,2]
[337687677,1725961552817,-500.0,0.00019939,2]
[337687678,1725961552840,-500.0,0.00019939,2]
[337687679,1725961552861,-502.19628065,0.00019939,2]
[337687680,1725961552882,-500.0,0.00019939,2]
[337687681,1725961552904,-629.37,0.00019939,2]
[337687682,1725961552926,-500.0,0.00019939,2]
[337687683,1725961552949,-503.18012607,0.00019939,2]
[337687684,1725961552971,-503.87101741,0.00019939,2]
[337687685,1725961552993,-325.324102,0.00019939,2]
[337687686,1725961553015,-325.324102,0.00019939,2]
[337687687,1725961553037,-325.324102,0.00019939,2]
[337687688,1725961553059,-504.6193267,0.00019939,2]
[337687689,1725961553082,-325.324102,0.00019939,2]
[337687690,1725961553104,-325.324102,0.00019939,2]
[337687691,1725961553127,-151.0,0.00019939,2]
[337687692,1725961553150,-155.211254,0.00019939,2]
[337687693,1725961553173,-548.51484337,0.00019939,2]
[337687694,1725961553197,-325.324102,0.00019939,2]
[337687695,1725961553219,-325.324102,0.00019939,2]
[337687696,1725961553242,-325.324102,0.00019939,2]
[337687697,1725961553265,-325.324102,0.00019939,2]
[337687698,1725961553289,-325.324102,0.00019939,2]
[337687699,1725961553312,-500.0,0.00019939,2]
[337687700,1725961553335,-520.95,0.00019939,2]
[337687701,1725961553362,-151.0,0.00019939,2]
[337687702,1725961553385,-520.95,0.00019939,2]
[337687703,1725961553410,-520.95,0.00019939,2]
[337687704,1725961553434,-151.0,0.00019939,2]
[337687705,1725961553457,-520.95,0.00019939,2]
[337687706,1725961553479,-151.0,0.00019939,2]
[337687707,1725961553506,-520.95,0.00019939,2]
[337687708,1725961553529,-151.0,0.00019939,2]
[337687709,1725961553552,-151.0,0.00019939,2]
[337687710,1725961553574,-500.77903371,0.00019939,2]
[337687711,1725961553596,-151.0,0.00019939,2]
[337687712,1725961553621,-151.0,0.00019939,2]
[337687713,1725961553644,-151.0,0.00019939,2]
[337687714,1725961553668,-180.382684,0.00019939,2]
[337687715,1725961553691,-180.382684,0.00019939,2]
[337687716,1725961553714,-180.382684,0.00019939,2]
[337687717,1725961553737,-180.382684,0.00019939,2]
[337687718,1725961553760,-180.382684,0.00019939,2]
[337687719,1725961553783,-180.382684,0.00019939,2]
[337687720,1725961553808,-180.382684,0.00019939,2]
[337687721,1725961553833,-180.382684,0.00019939,2]
[337687722,1725961553858,-180.382684,0.00019939,2]
[337687723,1725961553881,-180.382684,0.00019939,2]
[337687724,1725961553902,-500.0,0.00019939,2]
[337687725,1725961553925,-500.0,0.00019939,2]
[337687726,1725961553947,-500.0,0.00019939,2]
[337687727,1725961554191,-45525.04,0.00019939,2]
[337687728,1725961554216,-2139.72,0.00019939,2]
[337687729,1725961554240,-182.340411,0.00019939,2]
[337687730,1725961554266,-182.340411,0.00019939,2]
[337687731,1725961554288,-182.340411,0.00019939,2]
[337687732,1725961554311,-182.340411,0.00019939,2]
[337687733,1725961554333,-182.340411,0.00019939,2]
[337687734,1725961554356,-907.66,0.00019939,2]
[337687735,1725961554379,-182.340411,0.00019939,2]
[337687736,1725961554401,-182.340411,0.00019939,2]
[337687737,1725961554430,-182.340411,0.00019939,2]
[337687738,1725961554455,-182.340411,0.00019939,2]
[337687739,1725961554478,-182.340411,0.00019939,2]
[337687740,1725961554503,-182.340411,0.00019939,2]
[337687741,1725961554526,-182.340419,0.00019939,2]
[337687742,1725961554549,-628.73,0.00019939,2]
[337687743,1725961554572,-2308.79,0.00019939,2]
[337687744,1725961554596,-500.0,0.00019939,2]
[337687745,1725961554619,-504.72525001,0.00019939,2]
[337687746,1725961554642,-151.0,0.00019939,2]
[337687747,1725961554666,-151.0,0.00019939,2]
[337687748,1725961554691,-151.0,0.00019939,2]
[337687749,1725961554716,-151.0,0.00019939,2]
[337687750,1725961554740,-151.0,0.00019939,2]
[337687751,1725961554763,-151.0,0.00019939,2]
[337687752,1725961554785,-7063.46,0.00019939,2]
[337687753,1725961554808,-500.0,0.00019939,2]
[337687754,1725961554830,-500.0,0.00019939,2]
[337687755,1725961554853,-862.08,0.00019939,2]
[337687756,1725961554875,-500.0,0.00019939,2]
[337687757,1725961554898,-578.27,0.00019939,2]
[337687758,1725961554920,-195.94427851,0.00019939,2]
[337687759,1725961554946,-2704.17,0.00019939,2]
[337687760,1725961554968,-500.0,0.00019939,2]
[337687761,1725961554991,-820.23,0.00019939,2]
[337687762,1725961555013,-500.0,0.00019939,2]
[337687763,1725961555036,-500.0,0.00019939,2]
[337687764,1725961555058,-2252.89,0.00019939,2]
[337687765,1725961555080,-502.58852765,0.00019939,2]
[337687766,1725961555102,-2107.95,0.00019939,2]
[337687767,1725961555124,-500.0,0.00019939,2]
[337687768,1725961555146,-891.47,0.00019939,2]
[337687769,1725961555169,-500.0,0.00019939,2]
[337687770,1725961555192,-534.77,0.00019939,2]
[337687771,1725961555218,-1093.86,0.00019939,2]
[337687772,1725961555242,-4859.38,0.00019939,2]
[337687773,1725961555268,-500.0,0.00019939,2]
[337687774,1725961555291,-1535.51,0.00019939,2]
[337687775,1725961555314,-500.0,0.00019939,2]
[337687776,1725961555336,-500.0,0.00019939,2]
[337687777,1725961555358,-628.30504045,0.00019939,2]
[337687778,1725961555380,-500.0,0.00019939,2]
[337687779,1725961555405,-500.0,0.00019939,2]
[337687780,1725961555435,-2282.97,0.00019939,2]
[337687781,1725961555462,-500.0,0.00019939,2]
[337687782,1725961555486,-151.0,0.00019939,2]
[337687783,1725961555509,-151.0,0.00019939,2]
[337687784,1725961555535,-151.0,0.00019939,2]
[337687785,1725961555559,-242.024506,0.00019939,2]
[337687786,1725961555581,-500.0,0.00019939,2]
[337687787,1725961555604,-4653.86,0.00019939,2]
[337687788,1725961555626,-567.40747619,0.00019939,2]
[337687789,1725961555648,-500.0,0.00019939,2]
[337687790,1725961555671,-267.114651,0.00019939,2]
[337687791,1725961555693,-267.114651,0.00019939,2]
[337687792,1725961555715,-267.114651,0.00019939,2]
[337687793,1725961555736,-267.114651,0.00019939,2]
[337687794,1725961555759,-267.114651,0.00019939,2]
[337687795,1725961555781,-500.0,0.00019939,2]
[337687796,1725961555804,-267.114651,0.00019939,2]
[337687797,1725961555828,-267.114651,0.00019939,2]
[337687798,1725961555850,-1092.8,0.00019939,2]
[337687799,1725961555876,-3779.05,0.00019939,2]
[337687800,1725961555899,-267.114651,0.00019939,2]
[337687801,1725961555922,-267.114651,0.00019939,2]
[337687802,1725961555946,-267.114651,0.00019939,2]
[337687803,1725961555967,-2166.69,0.00019939,2]
[337687804,1725961555991,-267.114651,0.00019939,2]
[337687805,1725961556014,-267.114656,0.00019939,2]
[337687806,1725961556036,-541.25,0.00019939,2]
[337687807,1725961556058,-316.098645,0.00019939,2]
[337687808,1725961556081,-316.098645,0.00019939,2]
[337687809,1725961556104,-316.098645,0.00019939,2]
[337687810,1725961556127,-316.098645,0.00019939,2]
[337687811,1725961556149,-316.098645,0.00019939,2]
[337687812,1725961556172,-500.0,0.00019939,2]
[337687813,1725961556197,-316.098645,0.00019939,2]
[337687814,1725961556220,-928.42,0.00019939,2]
[337687815,1725961556243,-316.098645,0.00019939,2]
[337687816,1725961556266,-502.57110574,0.00019939,2]
[337687817,1725961556291,-316.098645,0.00019939,2]
[337687818,1725961556314,-316.098645,0.00019939,2]
[337687819,1725961556337,-316.098645,0.00019939,2]
[337687820,1725961556363,-4927.61,0.00019939,2]
[337687821,1725961556386,-316.098645,0.00019939,2]
[337687822,1725961556409,-316.098642,0.00019939,2]
[337687823,1725961556437,-500.0,0.00019939,2]
[337687824,1725961556465,-199.503838,0.00019939,2]
[337687825,1725961556489,-199.503838,0.00019939,2]
[337687826,1725961556513,-199.503838,0.00019939,2]
[337687827,1725961556535,-199.503838,0.00019939,2]
[337687828,1725961556556,-199.503838,0.00019939,2]
[337687829,1725961556579,-199.503838,0.00019939,2]
[337687830,1725961556602,-199.503838,0.00019939,2]
[337687831,1725961556626,-199.503838,0.00019939,2]
[337687832,1725961556649,-199.503838,0.00019939,2]
[337687833,1725961556672,-199.503838,0.00019939,2]
[337687834,1725961556698,-199.503838,0.00019939,2]
[337687835,1725961556719,-199.503838,0.00019939,2]
[337687836,1725961556742,-500.0,0.00019939,2]
[337687837,1725961556766,-1173.75,0.00019939,2]
[337687838,1725961556788,-500.0,0.00019939,2]
[337687839,1725961556811,-500.0,0.00019939,2]
[337687840,1725961556835,-1569.32,0.00019939,2]
[337687841,1725961556858,-500.0,0.00019939,2]
[337687842,1725961556882,-169.20719609,0.00019939,2]
[337687843,1725961556906,-620.235165,0.00019939,2]
[337687844,1725961556929,-620.235165,0.00019939,2]
[337687845,1725961556959,-620.235165,0.00019939,2]
[337687846,1725961556981,-502.02872896,0.00019939,2]
[337687847,1725961557004,-620.235165,0.00019939,2]
[337687848,1725961557026,-620.235165,0.00019939,2]
[337687849,1725961557049,-620.235162,0.00019939,2]
[337687850,1725961557073,-500.0,0.00019939,2]
[337687851,1725961557096,-3824.01,0.00019939,2]
[337687852,1725961557120,-2013.7,0.00019939,2]
[337687853,1725961557143,-1707.4,0.00019939,2]
[337687854,1725961557167,-859.6,0.00019939,2]
[337687855,1725961557198,-500.0,0.00019939,2]
[337687856,1725961557221,-762.97,0.00019939,2]
[337687857,1725961557245,-669.74,0.00019939,2]
[337687858,1725961557424,-1893.29,0.00019939,2]
[337687859,1725961557459,-1408.61,0.00019939,2]
[337687860,1725961557483,-610.96,0.00019939,2]
[337687861,1725961557510,-548.71,0.00019939,2]
[337687862,1725961557534,-500.0,0.00019939,2]
[337687863,1725961557559,-500.0,0.00019939,2]
[337687864,1725961557582,-748.08,0.00019939,2]
[337687865,1725961557606,-500.0,0.00019939,2]
[337687866,1725961557630,-1869.02,0.00019939,2]
[337687867,1725961557653,-726.56,0.00019939,2]
[337687868,1725961557676,-151.0,0.00019939,2]
[337687869,1725961557704,-277.074049,0.00019939,2]
[337687870,1725961557727,-2141.720629,0.00019939,2]
[337687871,1725961557752,-2141.720629,0.00019939,2]
[337687872,1725961557776,-2141.720629,0.00019939,2]
[337687873,1725961557802,-2141.720629,0.00019939,2]
[337687874,1725961557826,-2141.720629,0.00019939,2]
[337687875,1725961557849,-500.0,0.0001994,2]
[337687876,1725961557872,-500.0,0.0001994,2]
[337687877,1725961557895,-500.0,0.0001994,2]
[337687878,1725961557917,-500.0,0.0001994,2]
[337687879,1725961557942,-500.0,0.0001994,2]
[337687880,1725961557965,-481.13897028,0.0001994,2]
[337687881,1725961557989,-500.0,0.0001994,2]
[337687882,1725961558011,-500.0,0.0001994,2]
[337687883,1725961558034,-504.02896412,0.0001994,2]
[337687884,1725961558056,-500.0,0.0001994,2]
[337687885,1725961558080,-574.0,0.0001994,2]
[337687886,1725961558103,-500.0,0.0001994,2]
[337687887,1725961558126,-500.0,0.0001994,2]
[337687888,1725961558149,-500.0,0.0001994,2]
[337687889,1725961558174,-503.3113519,0.0001994,2]
[337687890,1725961558200,-1231.5,0.0001994,2]
[337687891,1725961558223,-451.13151373,0.0001994,2]
[337687892,1725961558245,-500.0,0.0001994,2]
[337687893,1725961558269,-500.0,0.0001994,2]
[337687894,1725961558292,-500.0,0.0001994,2]
[337687895,1725961558316,-500.0,0.0001994,2]
[337687896,1725961558340,-500.0,0.0001994,2]
[337687897,1725961558363,-500.0,0.0001994,2]
[337687898,1725961558386,-500.0,0.0001994,2]
[337687899,1725961558411,-500.0,0.0001994,2]
[337687900,1725961558438,-500.0,0.0001994,2]
[337687901,1725961558462,-500.0,0.0001994,2]
[337687902,1725961558484,-500.0,0.0001994,2]
[337687903,1725961558510,-1616.01,0.0001994,2]
[337687904,1725961558533,-545.89,0.0001994,2]
[337687905,1725961558556,-500.0,0.0001994,2]
[337687906,1725961558579,-500.0,0.0001994,2]
[337687907,1725961558602,-500.0,0.0001994,2]
[337687908,1725961558624,-501.41942918,0.0001994,2]
[337687909,1725961558647,-500.0,0.0001994,2]
[337687910,1725961558669,-503.22035838,0.0001994,2]
[337687911,1725961558693,-500.0,0.0001994,2]
[337687912,1725961558715,-634.66,0.0001994,2]
[337687913,1725961558739,-500.0,0.0001994,2]
[337687914,1725961558762,-500.0,0.0001994,2]
[337687915,1725961558785,-500.0,0.0001994,2]
[337687916,1725961558808,-500.0,0.0001994,2]